{"text_format":"1","workbook":"xlsx","n_sheets":1,"sheets":["WES Package Planner"],"not_rendered":{"charts":0,"images":0,"macros":1,"external_links":0,"defined_names":4,"comments":0,"pivot_tables":0},"unopened":[],"bounds":{"document_bytes":16777216,"sheet_cells":100000,"rows_first":2000,"rows_last":500,"rows_between":2000,"halvings":0,"cell_chars":16384,"cell_head_chars":4096},"cells_cut":0,"cells_raw":0,"read":"whole","date_system":"1900"}

{"sheet":"WES Package Planner","index":0,"n_rows":54,"n_cols":19,"rows_kept":54,"cut":false,"hidden":false,"merged":[[47,0,53,0],[2,0,18,0],[19,0,19,2],[46,0,46,2],[0,0,0,2],[20,0,45,0]]}
["پلن 85 روزه صفر تا صد آنالیز داده های توالی یابی اگزوم",null,null,null,null,null,null,null,null,null,"زمان شروع آموزشتان را در سلول زیر وارد کنید:"]
["زیردوره","شرح ویدئوی پکیج آنالیز WES","زمان",null,null,null,null,null,null,null,"1400/07/06",null,null,null,null,null,null,null,"نکات:\n1- روز اول از شروع پکیج را به نصب لینوکس روی کامپیوترهایتان اختصاص دهید.\n2- جلسات اسکایپ را به عنوان فوق برنامه به صلاحدید خود ما بین دوره ها مشاهده کنین.\n3- فرمت تاریخ را در زمان شروع استفاده از پکیج تغییر ندهید.\n4- تمامی حقوق برای AD Bioinformatics محفوظ است.\n"]
["Part 1: Variant Calling Course","جلسه آموزشی ویدئویی اول",{"$f":"J_ADDDAY(K2, 1, 1)","v":"1400/07/07"}]
[null,"جلسه آموزشی ویدئویی دوم",{"$f":"J_ADDDAY(K2, 3, 1)","v":"1400/07/09"}]
[null,"جلسه آموزشی ویدئویی سوم",{"$f":"J_ADDDAY(K2, 5, 1)","v":"1400/07/11"}]
[null,"جلسه آموزشی ویدئویی چهارم",{"$f":"J_ADDDAY(K2, 7, 1)","v":"1400/07/13"}]
[null,"جلسه آموزشی ویدئویی پنجم",{"$f":"J_ADDDAY(K2, 9, 1)","v":"1400/07/15"}]
[null,"جلسه آموزشی ویدئویی فوق برنامه",{"$f":"J_ADDDAY(K2, 11, 1)","v":"1400/07/17"}]
[null,"جلسه آموزشی ویدئویی ششم",{"$f":"J_ADDDAY(K2, 13, 1)","v":"1400/07/19"}]
[null,"جلسه آموزشی ویدئویی هفتم",{"$f":"J_ADDDAY(K2, 15, 1)","v":"1400/07/21"}]
[null,"جلسه آموزشی ویدئویی فوق برنامه",{"$f":"J_ADDDAY(K2, 17, 1)","v":"1400/07/23"}]
[null,"جلسه آموزشی ویدئویی هشتم",{"$f":"J_ADDDAY(K2, 19, 1)","v":"1400/07/25"}]
[null,"جلسه آموزشی ویدئویی فوق برنامه",{"$f":"J_ADDDAY(K2, 20, 1)","v":"1400/07/26"}]
[null,"جلسه آموزشی ویدئویی نهم",{"$f":"J_ADDDAY(K2, 22, 1)","v":"1400/07/28"}]
[null,"جلسه آموزشی ویدئویی دهم",{"$f":"J_ADDDAY(K2, 24, 1)","v":"1400/07/30"}]
[null,"جلسه آموزشی ویدئویی یازدهم",{"$f":"J_ADDDAY(K2, 25, 1)","v":"1400/08/01"}]
[null,"جلسه آموزشی ویدئویی دوازدهم",{"$f":"J_ADDDAY(K2, 27, 1)","v":"1400/08/03"}]
[null,"جلسه آموزشی ویدئویی سیزدهم",{"$f":"J_ADDDAY(K2, 28, 1)","v":"1400/08/04"}]
[null,"جلسه آموزشی ویدئویی چهاردهم",{"$f":"J_ADDDAY(K2, 30, 1)","v":"1400/08/06"}]
["سه روز استراحت"]
["Part 2 & 3: Variant Annotation & Filtration Course","جلسه آموزشی ویدئویی اول",{"$f":"J_ADDDAY(K2, 34, 1)","v":"1400/08/10"}]
[null,"جلسه آموزشی ویدئویی دوم",{"$f":"J_ADDDAY(K2, 36, 1)","v":"1400/08/12"}]
[null,"جلسه آموزشی ویدئویی سوم",{"$f":"J_ADDDAY(K2, 38, 1)","v":"1400/08/14"}]
[null,"جلسه آموزشی ویدئویی فوق برنامه",{"$f":"J_ADDDAY(K2, 39, 1)","v":"1400/08/15"}]
[null,"جلسه آموزشی ویدئویی چهارم",{"$f":"J_ADDDAY(K2, 40, 1)","v":"1400/08/16"}]
[null,"جلسه آموزشی ویدئویی پنجم",{"$f":"J_ADDDAY(K2, 42, 1)","v":"1400/08/18"}]
[null,"جلسه آموزشی ویدئویی ششم",{"$f":"J_ADDDAY(K2, 44, 1)","v":"1400/08/20"}]
[null,"جلسه آموزشی ویدئویی هفتم",{"$f":"J_ADDDAY(K2, 46, 1)","v":"1400/08/22"}]
[null,"جلسه آموزشی ویدئویی هشتم",{"$f":"J_ADDDAY(K2, 48, 1)","v":"1400/08/24"}]
[null,"جلسه آموزشی ویدئویی نهم",{"$f":"J_ADDDAY(K2, 50, 1)","v":"1400/08/26"}]
[null,"جلسه آموزشی ویدئویی دهم",{"$f":"J_ADDDAY(K2, 52, 1)","v":"1400/08/28"}]
[null,"جلسه آموزشی ویدئویی یازدهم",{"$f":"J_ADDDAY(K2, 54, 1)","v":"1400/08/30"}]
[null,"جلسه آموزشی ویدئویی فوق برنامه",{"$f":"J_ADDDAY(K2, 55, 1)","v":"1400/09/01"}]
[null,"جلسه آموزشی ویدئویی دوازدهم",{"$f":"J_ADDDAY(K2, 56, 1)","v":"1400/09/02"}]
[null,"جلسه آموزشی ویدئویی سیزدهم",{"$f":"J_ADDDAY(K2, 58, 1)","v":"1400/09/04"}]
[null,"جلسه آموزشی ویدئویی چهاردهم",{"$f":"J_ADDDAY(K2, 60, 1)","v":"1400/09/06"}]
[null,"جلسه آموزشی ویدئویی چهارده پلاس",{"$f":"J_ADDDAY(K2, 61, 1)","v":"1400/09/07"}]
[null,"جلسه آموزشی ویدئویی پانزدهم",{"$f":"J_ADDDAY(K2, 63, 1)","v":"1400/09/09"}]
[null,"جلسه آموزشی ویدئویی پانزده پلاس",{"$f":"J_ADDDAY(K2, 64, 1)","v":"1400/09/10"}]
[null,"جلسه آموزشی ویدئویی شانزدهم",{"$f":"J_ADDDAY(K2, 66, 1)","v":"1400/09/12"}]
[null,"جلسه آموزشی ویدئویی هفدهم",{"$f":"J_ADDDAY(K2, 67, 1)","v":"1400/09/13"}]
[null,"جلسه آموزشی ویدئویی هفده پلاس",{"$f":"J_ADDDAY(K2, 68, 1)","v":"1400/09/14"}]
[null,"جلسه آموزشی ویدئویی هجدهم",{"$f":"J_ADDDAY(K2, 70, 1)","v":"1400/09/16"}]
[null,"جلسه آموزشی ویدئویی نوزدهم",{"$f":"J_ADDDAY(K2, 71, 1)","v":"1400/09/17"}]
[null,"جلسه آموزشی ویدئویی بیستم",{"$f":"J_ADDDAY(K2, 72, 1)","v":"1400/09/18"}]
[null,"جلسه آموزشی ویدئویی فوق برنامه",{"$f":"J_ADDDAY(K2, 73, 1)","v":"1400/09/19"}]
["سه روز استراحت"]
["Part 4: Clinical Reporting Course","جلسه آموزشی ویدئویی اول",{"$f":"J_ADDDAY(K2, 77, 1)","v":"1400/09/23"}]
[null,"جلسه آموزشی ویدئویی دوم",{"$f":"J_ADDDAY(K2, 78, 1)","v":"1400/09/24"}]
[null,"جلسه آموزشی ویدئویی سوم",{"$f":"J_ADDDAY(K2, 80, 1)","v":"1400/09/26"}]
[null,"جلسه آموزشی ویدئویی چهارم",{"$f":"J_ADDDAY(K2, 81, 1)","v":"1400/09/27"}]
[null,"جلسه آموزشی ویدئویی پنجم",{"$f":"J_ADDDAY(K2, 82, 1)","v":"1400/09/28"}]
[null,"جلسه آموزشی ویدئویی ششم",{"$f":"J_ADDDAY(K2, 84, 1)","v":"1400/09/30"}]
[null,"جلسه آموزشی ویدئویی هفتم",{"$f":"J_ADDDAY(K2, 85, 1)","v":"1400/10/01"}]